[Event "Late-Titled-Tuesday-Blitz-December-26-2023"]
[Site "Chess.com"]
[Date "2023.12.26"]
[Round "9"]
[White "Msb2"]
[Black "Durarbayli"]
[Result "1-0"]
[WhiteElo "3022"]
[BlackElo "2926"]
[TimeControl "180+1"]
[EndTime "15:42:28 PST"]
[Termination "Msb2 won on time"]

1. d4 {[%clk 0:03:00.9]} 1... d5 {[%clk 0:03:00.6]} 2. c4 {[%clk 0:03:01.4]}
2... c6 {[%clk 0:03:01.4]} 3. Nf3 {[%clk 0:03:01.8]} 3... Nf6 {[%clk 0:03:01.3]}
4. Nc3 {[%clk 0:03:02.7]} 4... e6 {[%clk 0:03:01.4]} 5. Qc2 {[%clk 0:03:02.9]}
5... dxc4 {[%clk 0:02:58.9]} 6. e4 {[%clk 0:03:03.1]} 6... b5 {[%clk 0:02:59.4]}
7. Be2 {[%clk 0:03:03.8]} 7... a5 {[%clk 0:02:55.4]} 8. O-O {[%clk 0:03:02.6]}
8... Na6 {[%clk 0:02:51.9]} 9. Bg5 {[%clk 0:02:52.8]} 9... h6 {[%clk 0:02:29.3]}
10. Bh4 {[%clk 0:02:47.2]} 10... Bb7 {[%clk 0:02:18.4]} 11. a4 {[%clk
0:02:34.3]} 11... Nb4 {[%clk 0:02:16.7]} 12. Qc1 {[%clk 0:02:26.9]} 12... g5
{[%clk 0:01:49.7]} 13. Bg3 {[%clk 0:02:22.2]} 13... Qb6 {[%clk 0:01:50.2]} 14.
Be5 {[%clk 0:02:03.6]} 14... Be7 {[%clk 0:01:19.9]} 15. d5 {[%clk 0:02:03.2]}
15... exd5 {[%clk 0:01:14.4]} 16. Nd4 {[%clk 0:01:53.4]} 16... O-O {[%clk
0:00:55.6]} 17. Nf5 {[%clk 0:01:52.4]} 17... Nd7 {[%clk 0:00:35.3]} 18. Nxe7+
{[%clk 0:01:37.1]} 18... Kh7 {[%clk 0:00:35.6]} 19. Bd6 {[%clk 0:01:20.1]} 19...
d4 {[%clk 0:00:32.4]} 20. Bg4 {[%clk 0:01:20.7]} 20... Nd3 {[%clk 0:00:18.4]}
21. Bf5+ {[%clk 0:01:21]} 21... Kh8 {[%clk 0:00:17.6]} 22. Qd2 {[%clk
0:01:21.2]} 22... N7e5 {[%clk 0:00:08.2]} 23. Ne2 {[%clk 0:01:15.6]} 23... c5
{[%clk 0:00:08.4]} 24. Bxe5+ {[%clk 0:01:06.7]} 24... Nxe5 {[%clk 0:00:09.3]}
25. f4 {[%clk 0:01:07.6]} 25... Nd3 {[%clk 0:00:05.8]} 26. fxg5 {[%clk
0:01:05.8]} 26... Rae8 {[%clk 0:00:06.5]} 27. g6 {[%clk 0:01:04.7]} 27... Kg7
{[%clk 0:00:05.8]} 28. Ng3 {[%clk 0:01:01.5]} 28... fxg6 {[%clk 0:00:05.3]} 29.
Nxg6 {[%clk 0:00:59.7]} 29... Rxf5 {[%clk 0:00:05.2]} 30. Nxf5+ {[%clk
0:00:58.3]} 30... Kg8 {[%clk 0:00:01.1]} 31. Qxh6 {[%clk 0:00:57.9]} 31... Qf6
{[%clk 0:00:01.8]} 32. Nfe7+ {[%clk 0:00:57]} 1-0

[Event "Late-Titled-Tuesday-Blitz-December-26-2023"]
[Site "Chess.com"]
[Date "2023.12.26"]
[Round "9"]
[White "Zampronha1971"]
[Black "wild3000"]
[Result "0-1"]
[WhiteElo "2333"]
[BlackElo "2474"]
[TimeControl "180+1"]
[EndTime "15:42:34 PST"]
[Termination "wild3000 won by checkmate"]

1. e4 {[%clk 0:03:00.9]} 1... e6 {[%clk 0:02:22.4]} 2. d4 {[%clk 0:02:59.3]}
2... a6 {[%clk 0:02:23]} 3. c4 {[%clk 0:02:58.8]} 3... d6 {[%clk 0:02:22.4]} 4.
Nc3 {[%clk 0:02:58.7]} 4... Nf6 {[%clk 0:02:23]} 5. g3 {[%clk 0:02:57.1]} 5...
b5 {[%clk 0:02:22.1]} 6. cxb5 {[%clk 0:02:56.1]} 6... axb5 {[%clk 0:02:22.5]} 7.
Bxb5+ {[%clk 0:02:55]} 7... c6 {[%clk 0:02:21.7]} 8. Bf1 {[%clk 0:02:53.2]} 8...
h5 {[%clk 0:02:22.6]} 9. h4 {[%clk 0:02:52.2]} 9... Be7 {[%clk 0:02:19.3]} 10.
Nf3 {[%clk 0:02:52.2]} 10... O-O {[%clk 0:02:18.9]} 11. Bg2 {[%clk 0:02:52.6]}
11... Ba6 {[%clk 0:02:18.5]} 12. Bf1 {[%clk 0:02:51.3]} 12... Bxf1 {[%clk
0:02:14.7]} 13. Kxf1 {[%clk 0:02:50.8]} 13... d5 {[%clk 0:02:08.6]} 14. e5
{[%clk 0:02:45.4]} 14... Ng4 {[%clk 0:02:08.7]} 15. Qe2 {[%clk 0:02:30.4]} 15...
c5 {[%clk 0:02:08.6]} 16. Be3 {[%clk 0:02:22.5]} 16... Nc6 {[%clk 0:02:08.4]}
17. dxc5 {[%clk 0:02:17.6]} 17... Ncxe5 {[%clk 0:02:08.2]} 18. Nxe5 {[%clk
0:02:16.5]} 18... Nxe5 {[%clk 0:02:09.1]} 19. Qxh5 {[%clk 0:02:15.1]} 19... Bf6
{[%clk 0:02:04.8]} 20. Bd4 {[%clk 0:02:05.8]} 20... Nd7 {[%clk 0:02:04.2]} 21.
Bxf6 {[%clk 0:02:00.4]} 21... Nxf6 {[%clk 0:02:05.1]} 22. Qg5 {[%clk 0:01:55]}
22... d4 {[%clk 0:02:03.6]} 23. Ne2 {[%clk 0:01:48.4]} 23... d3 {[%clk
0:02:03.6]} 24. Nf4 {[%clk 0:01:47.7]} 24... d2 {[%clk 0:02:01.4]} 25. Kg2
{[%clk 0:01:46.5]} 25... Qd4 {[%clk 0:01:48.7]} 26. Nh5 {[%clk 0:01:22.3]} 26...
Nxh5 {[%clk 0:01:31.9]} 27. Qxh5 {[%clk 0:01:23.2]} 27... Qxb2 {[%clk
0:01:31.7]} 28. a4 {[%clk 0:01:11.5]} 28... Rfd8 {[%clk 0:01:29.2]} 29. Rhd1
{[%clk 0:01:07.7]} 29... Rd5 {[%clk 0:01:11.9]} 30. Qe2 {[%clk 0:01:00.7]} 30...
Rad8 {[%clk 0:01:11]} 31. c6 {[%clk 0:00:59.6]} 31... Qc3 {[%clk 0:01:08.3]} 32.
a5 {[%clk 0:00:49.5]} 32... Qxc6 {[%clk 0:01:07]} 33. Kh2 {[%clk 0:00:50.1]}
33... g5 {[%clk 0:00:53.9]} 34. hxg5 {[%clk 0:00:45.3]} 34... Rxg5 {[%clk
0:00:52.1]} 35. a6 {[%clk 0:00:45.6]} 35... Kg7 {[%clk 0:00:42]} 36. f4 {[%clk
0:00:40]} 36... Rh8+ {[%clk 0:00:41.1]} 37. Kg1 {[%clk 0:00:39.8]} 37... Rxg3+
{[%clk 0:00:38.9]} 38. Kf2 {[%clk 0:00:38.2]} 38... Qg2# {[%clk 0:00:36.7]} 0-1

[Event "Late-Titled-Tuesday-Blitz-December-26-2023"]
[Site "Chess.com"]
[Date "2023.12.26"]
[Round "9"]
[White "Predator0608"]
[Black "GoltsevDmitry2000"]
[Result "0-1"]
[WhiteElo "2544"]
[BlackElo "2682"]
[TimeControl "180+1"]
[EndTime "15:42:35 PST"]
[Termination "GoltsevDmitry2000 won by resignation"]

1. f4 {[%clk 0:03:00.9]} 1... e5 {[%clk 0:02:59.2]} 2. fxe5 {[%clk 0:03:00.9]}
2... d6 {[%clk 0:02:59.6]} 3. exd6 {[%clk 0:03:01.8]} 3... Bxd6 {[%clk
0:03:00.1]} 4. Nf3 {[%clk 0:03:01.2]} 4... Nf6 {[%clk 0:02:59.5]} 5. d3 {[%clk
0:02:51.4]} 5... Ng4 {[%clk 0:02:57.8]} 6. c3 {[%clk 0:02:37.5]} 6... Nc6 {[%clk
0:02:39.2]} 7. Qd2 {[%clk 0:02:30.3]} 7... h6 {[%clk 0:02:32.2]} 8. e4 {[%clk
0:02:19.7]} 8... Nce5 {[%clk 0:02:25.2]} 9. Kd1 {[%clk 0:02:12.9]} 9... Qf6
{[%clk 0:02:15.7]} 10. Qe2 {[%clk 0:02:01.3]} 10... Qg6 {[%clk 0:01:47.8]} 11.
d4 {[%clk 0:01:36.3]} 11... Nd3 {[%clk 0:01:46.1]} 12. Kc2 {[%clk 0:01:21.2]}
12... Ndf2 {[%clk 0:01:40.1]} 13. Rg1 {[%clk 0:01:16.7]} 13... Nxe4 {[%clk
0:01:39.2]} 14. Kd1 {[%clk 0:01:10.5]} 14... O-O {[%clk 0:01:34.8]} 15. Kc2
{[%clk 0:00:19.5]} 15... Ng3+ {[%clk 0:01:31.8]} 16. Qd3 {[%clk 0:00:20.1]}
16... Bf5 {[%clk 0:01:29.3]} 17. hxg3 {[%clk 0:00:21]} 17... Nf2 {[%clk
0:01:26.4]} 18. Qxf5 {[%clk 0:00:19.6]} 18... Qxf5+ {[%clk 0:01:27.3]} 19. Kb3
{[%clk 0:00:19]} 19... Nd3 {[%clk 0:01:24.8]} 20. Nbd2 {[%clk 0:00:16]} 20...
Bxg3 {[%clk 0:01:18.8]} 21. a4 {[%clk 0:00:11.7]} 21... Rfe8 {[%clk 0:01:16.7]}
22. Nc4 {[%clk 0:00:11.1]} 22... Nxc1+ {[%clk 0:01:13.4]} 23. Rxc1 {[%clk
0:00:10.7]} 23... Rab8 {[%clk 0:01:12.3]} 24. Ncd2 {[%clk 0:00:10.4]} 24... a6
{[%clk 0:01:09.3]} 25. Ka2 {[%clk 0:00:08.2]} 25... b5 {[%clk 0:01:09.4]} 26. a5
{[%clk 0:00:08.4]} 26... b4 {[%clk 0:01:08.4]} 27. Bc4 {[%clk 0:00:08.7]} 27...
Qxa5+ {[%clk 0:01:07.5]} 28. Kb1 {[%clk 0:00:08.2]} 28... bxc3 {[%clk
0:01:07.4]} 29. Nb3 {[%clk 0:00:08.1]} 29... Qf5+ {[%clk 0:01:02.1]} 30. Rc2
{[%clk 0:00:08.1]} 30... cxb2 {[%clk 0:01:01.1]} 31. Rf1 {[%clk 0:00:08.5]}
31... Re3 {[%clk 0:00:59.3]} 32. Ne5 {[%clk 0:00:06]} 32... Qxf1+ {[%clk
0:00:56.8]} 33. Bxf1 {[%clk 0:00:06.9]} 33... Re1+ {[%clk 0:00:56.1]} 34. Kxb2
{[%clk 0:00:06.6]} 34... Bxe5 {[%clk 0:00:56.6]} 35. dxe5 {[%clk 0:00:06.5]}
35... Rxf1 {[%clk 0:00:56.9]} 0-1

[Event "Late-Titled-Tuesday-Blitz-December-26-2023"]
[Site "Chess.com"]
[Date "2023.12.26"]
[Round "9"]
[White "GMthekingindian"]
[Black "aranibos"]
[Result "0-1"]
[WhiteElo "2301"]
[BlackElo "2182"]
[TimeControl "180+1"]
[EndTime "15:42:35 PST"]
[Termination "aranibos won on time"]

1. e4 {[%clk 0:03:00.9]} 1... c6 {[%clk 0:03:00.2]} 2. c4 {[%clk 0:03:00.7]}
2... d5 {[%clk 0:03:00.7]} 3. cxd5 {[%clk 0:03:01.6]} 3... cxd5 {[%clk
0:03:00.7]} 4. exd5 {[%clk 0:03:02.5]} 4... Qxd5 {[%clk 0:02:59.9]} 5. d4 {[%clk
0:03:02.1]} 5... e6 {[%clk 0:02:57.3]} 6. Nc3 {[%clk 0:03:01.1]} 6... Qd8 {[%clk
0:02:53]} 7. Nf3 {[%clk 0:03:01.2]} 7... Nf6 {[%clk 0:02:50.3]} 8. Bd3 {[%clk
0:03:01.2]} 8... Bd6 {[%clk 0:02:47.2]} 9. O-O {[%clk 0:03:00.6]} 9... h6 {[%clk
0:02:46.6]} 10. Qe2 {[%clk 0:02:54.4]} 10... O-O {[%clk 0:02:40.9]} 11. Ne4
{[%clk 0:02:51.5]} 11... Nxe4 {[%clk 0:02:39.6]} 12. Qxe4 {[%clk 0:02:50.9]}
12... f5 {[%clk 0:02:40]} 13. Qe2 {[%clk 0:02:48.4]} 13... Nc6 {[%clk
0:02:34.8]} 14. Bc4 {[%clk 0:02:33.2]} 14... Qf6 {[%clk 0:02:33]} 15. Rd1 {[%clk
0:02:17.5]} 15... Bd7 {[%clk 0:02:27.9]} 16. a3 {[%clk 0:01:50.5]} 16... Kh8
{[%clk 0:02:14.7]} 17. b4 {[%clk 0:01:25.9]} 17... Rad8 {[%clk 0:02:08.8]} 18.
Bb2 {[%clk 0:01:23.3]} 18... Ne7 {[%clk 0:01:59.2]} 19. Ne5 {[%clk 0:01:16.8]}
19... Nd5 {[%clk 0:01:49.3]} 20. Qf3 {[%clk 0:01:08.4]} 20... Bc6 {[%clk
0:01:44.9]} 21. b5 {[%clk 0:01:01.3]} 21... Be8 {[%clk 0:01:37.7]} 22. Bxd5
{[%clk 0:00:53.3]} 22... exd5 {[%clk 0:01:37.2]} 23. Qxd5 {[%clk 0:00:46]} 23...
Bxa3 {[%clk 0:01:28.5]} 24. Qb3 {[%clk 0:00:30.6]} 24... Bxb2 {[%clk 0:01:28.6]}
25. Qxb2 {[%clk 0:00:30.9]} 25... Qb6 {[%clk 0:01:22.7]} 26. Qb4 {[%clk
0:00:23.8]} 26... Bxb5 {[%clk 0:01:15.5]} 27. Rab1 {[%clk 0:00:14.8]} 27... a6
{[%clk 0:01:15.2]} 28. Qe7 {[%clk 0:00:14.4]} 28... Kg8 {[%clk 0:00:52.9]} 29.
d5 {[%clk 0:00:05.1]} 29... Qd6 {[%clk 0:00:49.4]} 30. Qxd6 {[%clk 0:00:02.6]}
30... Rxd6 {[%clk 0:00:49.9]} 0-1

[Event "Late-Titled-Tuesday-Blitz-December-26-2023"]
[Site "Chess.com"]
[Date "2023.12.26"]
[Round "9"]
[White "GothamChess"]
[Black "Fh2411"]
[Result "1-0"]
[WhiteElo "2682"]
[BlackElo "2537"]
[TimeControl "180+1"]
[EndTime "15:42:36 PST"]
[Termination "GothamChess won on time"]

1. e4 {[%clk 0:03:00.9]} 1... c6 {[%clk 0:02:57.9]} 2. d4 {[%clk 0:02:59.8]}
2... d5 {[%clk 0:02:58.5]} 3. f3 {[%clk 0:02:59.5]} 3... dxe4 {[%clk 0:02:55.8]}
4. fxe4 {[%clk 0:02:58.9]} 4... e5 {[%clk 0:02:53]} 5. Nf3 {[%clk 0:02:58.6]}
5... Bg4 {[%clk 0:02:50.6]} 6. c3 {[%clk 0:02:57.3]} 6... Nd7 {[%clk 0:02:48.2]}
7. Bd3 {[%clk 0:02:50.7]} 7... Ngf6 {[%clk 0:01:51.4]} 8. O-O {[%clk 0:02:50.1]}
8... Bd6 {[%clk 0:01:50.8]} 9. Bg5 {[%clk 0:02:49.8]} 9... h6 {[%clk 0:01:46]}
10. Bh4 {[%clk 0:02:48.3]} 10... g5 {[%clk 0:01:25.6]} 11. Bg3 {[%clk
0:02:44.1]} 11... Qe7 {[%clk 0:01:25.6]} 12. Nbd2 {[%clk 0:02:43.2]} 12... Nh5
{[%clk 0:01:22.4]} 13. Qe1 {[%clk 0:02:38.6]} 13... Bc7 {[%clk 0:01:06.5]} 14.
Nc4 {[%clk 0:02:30.8]} 14... f6 {[%clk 0:01:04]} 15. Ne3 {[%clk 0:02:28.6]}
15... Be6 {[%clk 0:00:52.6]} 16. d5 {[%clk 0:02:19.2]} 16... Nc5 {[%clk
0:00:48.8]} 17. Bc2 {[%clk 0:02:12.1]} 17... Bf7 {[%clk 0:00:25.8]} 18. b4
{[%clk 0:02:11.4]} 18... Nd7 {[%clk 0:00:25.8]} 19. Nf5 {[%clk 0:02:11.1]} 19...
Qf8 {[%clk 0:00:26.3]} 20. Rd1 {[%clk 0:02:06.3]} 20... cxd5 {[%clk 0:00:20.6]}
21. exd5 {[%clk 0:02:05.3]} 21... Bb6+ {[%clk 0:00:19.1]} 22. Bf2 {[%clk
0:02:05.3]} 22... Nf4 {[%clk 0:00:15.2]} 23. Ba4 {[%clk 0:02:03.8]} 23... O-O-O
{[%clk 0:00:13.2]} 24. c4 {[%clk 0:01:57.1]} 24... Bg6 {[%clk 0:00:09.7]} 25.
Bc2 {[%clk 0:01:51.6]} 25... Bxf2+ {[%clk 0:00:08.5]} 26. Rxf2 {[%clk
0:01:51.2]} 26... Kb8 {[%clk 0:00:08.7]} 27. c5 {[%clk 0:01:48.3]} 27... Qf7
{[%clk 0:00:04.7]} 28. Nd6 {[%clk 0:01:45.3]} 28... Qh7 {[%clk 0:00:05.4]} 29.
Bxg6 {[%clk 0:01:42.3]} 29... Qxg6 {[%clk 0:00:06.3]} 30. Rfd2 {[%clk
0:01:28.6]} 30... g4 {[%clk 0:00:04.7]} 31. Nh4 {[%clk 0:01:28.7]} 31... Qg5
{[%clk 0:00:04.7]} 32. Nf7 {[%clk 0:01:29.3]} 32... Qh5 {[%clk 0:00:04.3]} 33.
Nxh8 {[%clk 0:01:27.7]} 33... Rxh8 {[%clk 0:00:04.3]} 34. c6 {[%clk 0:01:28.4]}
34... Nb6 {[%clk 0:00:03.8]} 35. cxb7 {[%clk 0:01:22.9]} 35... Kxb7 {[%clk
0:00:04.7]} 36. d6 {[%clk 0:01:23]} 36... Rd8 {[%clk 0:00:04.4]} 37. Qe4+ {[%clk
0:01:22.2]} 37... Kb8 {[%clk 0:00:04]} 38. Nf5 {[%clk 0:01:18.7]} 38... Ne6
{[%clk 0:00:04]} 39. Ne7 {[%clk 0:01:15.2]} 1-0

[Event "Late-Titled-Tuesday-Blitz-December-26-2023"]
[Site "Chess.com"]
[Date "2023.12.26"]
[Round "9"]
[White "SergioMoralesG"]
[Black "Schwindle"]
[Result "1/2-1/2"]
[WhiteElo "2434"]
[BlackElo "2415"]
[TimeControl "180+1"]
[EndTime "15:42:40 PST"]
[Termination "Game drawn by repetition"]

1. d4 {[%clk 0:03:00.9]} 1... Nf6 {[%clk 0:02:47.9]} 2. c4 {[%clk 0:03:00.1]}
2... e6 {[%clk 0:02:48.1]} 3. Nf3 {[%clk 0:03:00.6]} 3... c5 {[%clk 0:02:47]} 4.
d5 {[%clk 0:02:59.8]} 4... exd5 {[%clk 0:02:47.3]} 5. cxd5 {[%clk 0:03:00.7]}
5... d6 {[%clk 0:02:48]} 6. Nc3 {[%clk 0:02:59.4]} 6... g6 {[%clk 0:02:47.5]} 7.
Bf4 {[%clk 0:02:58.9]} 7... a6 {[%clk 0:02:47.7]} 8. a4 {[%clk 0:02:57.9]} 8...
Bg7 {[%clk 0:02:47.6]} 9. h3 {[%clk 0:02:58.2]} 9... O-O {[%clk 0:02:47.7]} 10.
e3 {[%clk 0:02:58.8]} 10... Re8 {[%clk 0:02:47.1]} 11. Be2 {[%clk 0:02:57.8]}
11... Ne4 {[%clk 0:02:45.5]} 12. Nxe4 {[%clk 0:02:48.8]} 12... Rxe4 {[%clk
0:02:46.4]} 13. Rb1 {[%clk 0:02:45]} 13... Qa5+ {[%clk 0:02:31.2]} 14. Nd2
{[%clk 0:02:44.7]} 14... Rxa4 {[%clk 0:02:24.6]} 15. O-O {[%clk 0:02:44.1]}
15... Be5 {[%clk 0:02:03.5]} 16. Bxe5 {[%clk 0:02:35.9]} 16... dxe5 {[%clk
0:02:04.4]} 17. Nc4 {[%clk 0:02:36.2]} 17... Rxc4 {[%clk 0:01:51.3]} 18. Bxc4
{[%clk 0:02:37.1]} 18... b5 {[%clk 0:01:50.4]} 19. Be2 {[%clk 0:02:25.7]} 19...
Bf5 {[%clk 0:01:44.7]} 20. Ra1 {[%clk 0:02:22.8]} 20... Qb6 {[%clk 0:01:44.3]}
21. Qb3 {[%clk 0:02:15.3]} 21... Nd7 {[%clk 0:01:42.2]} 22. g4 {[%clk
0:01:45.4]} 22... Be4 {[%clk 0:01:42]} 23. f3 {[%clk 0:01:45.6]} 23... c4 {[%clk
0:01:28]} 24. Bxc4 {[%clk 0:01:38.7]} 24... Nc5 {[%clk 0:01:20.4]} 25. Qb4
{[%clk 0:01:36.5]} 25... Bd3 {[%clk 0:01:17.9]} 26. Bxd3 {[%clk 0:01:33.1]}
26... Nxd3 {[%clk 0:01:18.8]} 27. Qd2 {[%clk 0:01:31.5]} 27... e4 {[%clk
0:01:09.9]} 28. fxe4 {[%clk 0:01:25.9]} 28... Ne5 {[%clk 0:01:10]} 29. d6 {[%clk
0:01:12]} 29... Rd8 {[%clk 0:01:07.7]} 30. Qd4 {[%clk 0:01:08.1]} 30... Qxd6
{[%clk 0:01:02.9]} 31. Qxd6 {[%clk 0:01:08.1]} 31... Rxd6 {[%clk 0:01:03.8]} 32.
Rfd1 {[%clk 0:00:48.1]} 32... Rc6 {[%clk 0:00:57.8]} 33. Rdc1 {[%clk 0:00:47.3]}
33... Rf6 {[%clk 0:00:53.9]} 34. Rc8+ {[%clk 0:00:41.3]} 34... Kg7 {[%clk
0:00:53.1]} 35. Ra8 {[%clk 0:00:42.2]} 35... Rd6 {[%clk 0:00:49.5]} 36. Kf1
{[%clk 0:00:26.4]} 36... Rd2 {[%clk 0:00:45.4]} 37. Ke1 {[%clk 0:00:23.7]} 37...
Nf3+ {[%clk 0:00:44.3]} 38. Kf1 {[%clk 0:00:22.2]} 38... Nh2+ {[%clk 0:00:44.4]}
39. Ke1 {[%clk 0:00:22.4]} 39... Nf3+ {[%clk 0:00:44.6]} 40. Kf1 {[%clk
0:00:22.8]} 40... Nh2+ {[%clk 0:00:44.9]} 41. Ke1 {[%clk 0:00:23.3]} 41... Nf3+
{[%clk 0:00:45.2]} 1/2-1/2

[Event "Late-Titled-Tuesday-Blitz-December-26-2023"]
[Site "Chess.com"]
[Date "2023.12.26"]
[Round "9"]
[White "micke12a"]
[Black "PushingpawnsNYC"]
[Result "1-0"]
[WhiteElo "2412"]
[BlackElo "2466"]
[TimeControl "180+1"]
[EndTime "15:42:40 PST"]
[Termination "micke12a won by checkmate"]

1. e4 {[%clk 0:03:00.9]} 1... c5 {[%clk 0:02:50.8]} 2. Nc3 {[%clk 0:03:00.6]}
2... e6 {[%clk 0:02:48.8]} 3. Nge2 {[%clk 0:02:55.1]} 3... a6 {[%clk 0:02:48.4]}
4. g3 {[%clk 0:02:53]} 4... Qc7 {[%clk 0:02:48.6]} 5. d4 {[%clk 0:02:52.6]} 5...
cxd4 {[%clk 0:02:47.9]} 6. Nxd4 {[%clk 0:02:53.5]} 6... b5 {[%clk 0:02:46.3]} 7.
Bg2 {[%clk 0:02:52.2]} 7... Bb7 {[%clk 0:02:46.1]} 8. O-O {[%clk 0:02:50.9]}
8... d6 {[%clk 0:02:46.1]} 9. Re1 {[%clk 0:02:51.4]} 9... Be7 {[%clk 0:02:45.9]}
10. a4 {[%clk 0:02:48.7]} 10... b4 {[%clk 0:02:45]} 11. Na2 {[%clk 0:02:49.4]}
11... a5 {[%clk 0:02:44.3]} 12. c3 {[%clk 0:02:50]} 12... bxc3 {[%clk
0:02:43.4]} 13. Nxc3 {[%clk 0:02:48.6]} 13... Nf6 {[%clk 0:02:40.5]} 14. Bf4
{[%clk 0:02:42.7]} 14... e5 {[%clk 0:02:37.9]} 15. Ndb5 {[%clk 0:02:41.8]} 15...
Qd8 {[%clk 0:02:35.8]} 16. Bg5 {[%clk 0:02:38.2]} 16... O-O {[%clk 0:02:29.5]}
17. Bxf6 {[%clk 0:02:36.3]} 17... gxf6 {[%clk 0:02:29]} 18. Nd5 {[%clk
0:02:29.4]} 18... Ra6 {[%clk 0:02:22.7]} 19. Qg4+ {[%clk 0:02:22.8]} 19... Kh8
{[%clk 0:02:21.1]} 20. Rad1 {[%clk 0:02:23.5]} 20... Bc8 {[%clk 0:02:05.4]} 21.
Qh5 {[%clk 0:02:13.1]} 21... Be6 {[%clk 0:02:03.5]} 22. Bh3 {[%clk 0:02:07.1]}
22... Rc6 {[%clk 0:01:55.6]} 23. Bf5 {[%clk 0:01:55.7]} 23... Bxf5 {[%clk
0:01:51.9]} 24. Qxf5 {[%clk 0:01:56]} 24... Nd7 {[%clk 0:01:41.4]} 25. Re3
{[%clk 0:01:01.2]} 25... Rg8 {[%clk 0:01:30.5]} 26. g4 {[%clk 0:01:00.6]} 26...
Nc5 {[%clk 0:01:22.2]} 27. Rh3 {[%clk 0:00:56.3]} 27... Rg6 {[%clk 0:01:21]} 28.
Kh1 {[%clk 0:00:48.4]} 28... Bf8 {[%clk 0:01:16.2]} 29. g5 {[%clk 0:00:36.8]}
29... Qd7 {[%clk 0:00:51.6]} 30. Nxf6 {[%clk 0:00:27.7]} 30... Rxf6 {[%clk
0:00:19.5]} 31. Qxh7# {[%clk 0:00:25.7]} 1-0

[Event "Late-Titled-Tuesday-Blitz-December-26-2023"]
[Site "Chess.com"]
[Date "2023.12.26"]
[Round "9"]
[White "KorolDimitriy75"]
[Black "BestestBP"]
[Result "0-1"]
[WhiteElo "2324"]
[BlackElo "2203"]
[TimeControl "180+1"]
[EndTime "15:42:40 PST"]
[Termination "BestestBP won on time"]

1. d4 {[%clk 0:03:00.9]} 1... Nf6 {[%clk 0:03:00.1]} 2. c4 {[%clk 0:03:00.3]}
2... e6 {[%clk 0:03:00.7]} 3. Nc3 {[%clk 0:03:00.5]} 3... Bb4 {[%clk 0:03:01.3]}
4. Qc2 {[%clk 0:03:00.3]} 4... d6 {[%clk 0:03:01.1]} 5. e4 {[%clk 0:03:00.2]}
5... Nbd7 {[%clk 0:03:01.5]} 6. Bd3 {[%clk 0:02:34.5]} 6... b6 {[%clk
0:02:59.8]} 7. Ne2 {[%clk 0:02:25.4]} 7... Bb7 {[%clk 0:02:58.9]} 8. O-O {[%clk
0:02:24.8]} 8... e5 {[%clk 0:02:54.1]} 9. d5 {[%clk 0:02:06.7]} 9... Bxc3 {[%clk
0:02:45.6]} 10. Nxc3 {[%clk 0:02:00.9]} 10... h6 {[%clk 0:02:39.9]} 11. f3
{[%clk 0:01:51.7]} 11... O-O {[%clk 0:02:39.9]} 12. Be3 {[%clk 0:01:50.9]} 12...
Nc5 {[%clk 0:02:39.6]} 13. b4 {[%clk 0:01:32.8]} 13... Nxd3 {[%clk 0:02:38.6]}
14. Qxd3 {[%clk 0:01:33.7]} 14... a5 {[%clk 0:02:37.2]} 15. a3 {[%clk
0:01:31.8]} 15... Qe7 {[%clk 0:02:36.2]} 16. Rfc1 {[%clk 0:01:14]} 16... Nh5
{[%clk 0:02:34.2]} 17. Qd2 {[%clk 0:01:08.3]} 17... Qf6 {[%clk 0:02:30]} 18. Nb5
{[%clk 0:01:06.8]} 18... Rfc8 {[%clk 0:02:26.6]} 19. c5 {[%clk 0:01:05.5]} 19...
Ba6 {[%clk 0:02:07.6]} 20. cxb6 {[%clk 0:00:51.7]} 20... cxb6 {[%clk 0:02:03.3]}
21. Nc7 {[%clk 0:00:42.7]} 21... Ra7 {[%clk 0:01:58.9]} 22. Nxa6 {[%clk
0:00:32.9]} 22... Rxc1+ {[%clk 0:01:58.9]} 23. Qxc1 {[%clk 0:00:33.5]} 23... Nf4
{[%clk 0:01:40.7]} 24. Qc8+ {[%clk 0:00:13.7]} 24... Kh7 {[%clk 0:01:40.5]} 25.
b5 {[%clk 0:00:13.7]} 25... Ng6 {[%clk 0:01:16.2]} 26. Rc1 {[%clk 0:00:11.6]}
26... Qh4 {[%clk 0:01:14.4]} 27. Bxb6 {[%clk 0:00:10.8]} 27... Re7 {[%clk
0:01:13.4]} 28. Bf2 {[%clk 0:00:10.4]} 28... Qf4 {[%clk 0:01:12.7]} 29. Qc2
{[%clk 0:00:08.5]} 29... Qg5 {[%clk 0:01:10]} 30. Qd1 {[%clk 0:00:05.8]} 30...
Nf4 {[%clk 0:01:09.3]} 31. Bg3 {[%clk 0:00:05.6]} 31... Nh5 {[%clk 0:01:06.3]}
32. b6 {[%clk 0:00:04.8]} 32... Rb7 {[%clk 0:01:04]} 33. Qe1 {[%clk 0:00:02.8]}
33... Rxb6 {[%clk 0:01:03.3]} 34. Nc7 {[%clk 0:00:02.5]} 34... Rb2 {[%clk
0:00:58.1]} 35. Rd1 {[%clk 0:00:01.4]} 35... Nf4 {[%clk 0:00:57.3]} 0-1

[Event "Late-Titled-Tuesday-Blitz-December-26-2023"]
[Site "Chess.com"]
[Date "2023.12.26"]
[Round "9"]
[White "dennisodessa"]
[Black "Fradi82"]
[Result "1-0"]
[WhiteElo "2502"]
[BlackElo "2302"]
[TimeControl "180+1"]
[EndTime "15:42:59 PST"]
[Termination "dennisodessa won by resignation"]

1. d4 {[%clk 0:02:57.1]} 1... d5 {[%clk 0:02:59.4]} 2. c4 {[%clk 0:02:55]} 2...
e6 {[%clk 0:02:58.7]} 3. Nc3 {[%clk 0:02:54.9]} 3... c6 {[%clk 0:02:58.5]} 4.
cxd5 {[%clk 0:02:55.6]} 4... exd5 {[%clk 0:02:58.4]} 5. Bf4 {[%clk 0:02:56.3]}
5... Qf6 {[%clk 0:02:54.5]} 6. e3 {[%clk 0:02:56.2]} 6... Ne7 {[%clk 0:02:46.8]}
7. Rc1 {[%clk 0:02:55.7]} 7... Ng6 {[%clk 0:02:46.9]} 8. Nxd5 {[%clk 0:02:54.8]}
8... Qd8 {[%clk 0:02:42.6]} 9. Nc7+ {[%clk 0:02:54.2]} 9... Kd7 {[%clk
0:02:41.8]} 10. Nxa8 {[%clk 0:02:40.1]} 10... Bb4+ {[%clk 0:02:40.9]} 11. Ke2
{[%clk 0:02:36.2]} 11... Nxf4+ {[%clk 0:02:41.1]} 12. exf4 {[%clk 0:02:36.8]}
12... Re8+ {[%clk 0:02:41.5]} 13. Kd3 {[%clk 0:02:33.2]} 13... Kd6 {[%clk
0:02:19.4]} 14. Kc2 {[%clk 0:02:24.3]} 14... Re1 {[%clk 0:02:12.8]} 15. Qf3
{[%clk 0:02:12.3]} 15... Rxf1 {[%clk 0:01:22.5]} 16. Rxf1 {[%clk 0:02:08.3]}
16... Bf5+ {[%clk 0:01:22.7]} 17. Kc1 {[%clk 0:02:08.5]} 17... Qa5 {[%clk
0:01:13.6]} 18. Qb3 {[%clk 0:01:24.3]} 18... Bd2+ {[%clk 0:00:49.5]} 19. Kd1
{[%clk 0:01:23.7]} 19... Bb4 {[%clk 0:00:41.6]} 20. a3 {[%clk 0:01:09.4]} 20...
Bd2 {[%clk 0:00:40]} 21. Ne2 {[%clk 0:00:55.9]} 21... Nd7 {[%clk 0:00:31.9]} 22.
Qxb7 {[%clk 0:00:13.6]} 22... Nb6 {[%clk 0:00:14.6]} 23. Qc7+ {[%clk 0:00:11.3]}
23... Kd5 {[%clk 0:00:07.3]} 24. Qe5+ {[%clk 0:00:12.2]} 24... Kc4 {[%clk
0:00:07.1]} 25. Qxa5 {[%clk 0:00:11.6]} 1-0